bitfinex/quotes_SOLUSD_20260223
["timestamp","ask_amount","ask_price","bid_price","bid_amount"]
[1771807444205,0.5,82.149,82.111,42.62522682]
[1771807451204,0.5,82.149,82.12,3.19425085]
[1771807451724,0.5,82.158,82.12,3.19425085]
[1771807452418,0.5,82.158,82.121,42.62003628]
[1771807453426,0.5,82.163,82.14,3.19425085]
[1771807453806,0.5,82.163,82.13,3.19425085]
[1771807454225,0.5,82.163,82.14,3.19425085]
[1771807454407,0.5,82.168,82.14,3.19425085]
[1771807455625,0.5,82.168,82.141,12.17418828]
[1771807456604,0.5,82.159,82.121,42.62003628]
[1771807456832,0.5,82.159,82.121,12.17715322]
[1771807458027,0.5,82.157,82.12,3.19425085]
[1771807458203,9.18375557,82.158,82.121,0.49358579]
[1771807459425,0.28432314,82.169,82.123,0.49358579]
[1771807460213,0.4644833,82.168,82.123,0.49358579]
[1771807461819,0.4644833,82.166,82.124,12.67029418]
[1771807464027,0.4644833,82.164,82.124,12.17670839]
[1771807464227,0.4644833,82.164,82.124,12.67029418]
[1771807464409,0.4644833,82.164,82.125,0.49358579]
[1771807466534,0.4644833,82.162,82.127,0.49358579]
[1771807467630,0.4644833,82.16,82.128,12.66970112]
[1771807468836,0.4644833,82.158,82.128,12.66970112]
[1771807469146,0.4644833,82.158,82.129,0.49358579]
[1771807470419,12.17152107,82.159,82.131,0.49358579]
[1771807470940,3.19425085,82.17,82.131,0.49358579]
[1771807470941,0.4644833,82.195,82.151,0.49358579]
[1771807471519,0.4644833,82.195,82.161,0.49358579]
[1771807471720,0.4644833,82.2,82.171,0.49358579]
[1771807472429,0.4644833,82.198,82.171,0.49358579]
[1771807472632,0.4644833,82.198,82.161,0.49358579]
[1771807472820,0.4644833,82.196,82.162,12.17107665]
[1771807473021,0.4644833,82.196,82.171,0.49358579]
[1771807473343,0.4644833,82.206,82.171,0.49358579]
[1771807474142,0.4644833,82.206,82.172,12.16959548]
[1771807474346,0.4644833,82.189,82.158,0.49358579]
[1771807476346,0.4644833,82.187,82.159,12.17152107]
[1771807476652,0.4644833,82.179,82.159,12.17152107]
[1771807477238,0.4644833,82.187,82.16,0.49358579]
[1771807478344,0.4644833,82.187,82.162,0.48887698]
[1771807478648,12.63690997,82.186,82.162,0.48887698]
[1771807480442,12.16752244,82.186,82.162,0.48887698]
[1771807480750,3.19425085,82.19,82.162,0.48887698]
[1771807481138,0.46938753,82.189,82.162,0.48887698]
[1771807484049,0.46938753,82.187,82.162,0.48887698]
[1771807486033,0.46938753,82.187,82.163,12.17092852]
[1771807486437,0.46938753,82.196,82.164,0.48887698]
[1771807487149,0.46938753,82.189,82.158,12.66050173]
[1771807487327,0.46938753,82.189,82.159,0.48887698]
[1771807488961,12.16722635,82.188,82.159,0.48887698]
[1771807489160,12.16722635,82.188,82.161,0.48887698]
[1771807489161,0.46938753,82.187,82.161,0.48887698]
[1771807489352,0.46938753,82.187,82.155,12.66086509]
[1771807489556,0.46938753,82.187,82.107,5.36086188]
[1771807489557,0.46938753,82.169,82.144,0.48887698]
[1771807489863,0.46938753,82.169,82.141,12.17418828]
[1771807490163,0.46938753,82.169,82.141,12.66306526]
[1771807490960,0.46938753,82.169,82.142,0.48887698]
[1771807491151,0.46938753,82.167,82.142,0.48887698]
[1771807491655,0.46938753,82.167,82.138,12.17458325]
[1771807491845,0.46938753,82.159,82.136,0.48887698]
[1771807492246,0.46938753,82.159,82.136,12.66379857]
[1771807492554,0.46938753,82.159,82.128,0.48887698]
[1771807494358,0.46938753,82.157,82.128,0.48887698]
[1771807496060,0.46938753,82.155,82.129,12.17596707]
[1771807496263,0.46938753,82.155,82.13,0.48887698]
[1771807498667,0.46938753,82.153,82.13,0.48887698]
[1771807500472,0.46938753,82.153,82.119,0.48887698]
[1771807500671,0.46938753,82.139,82.107,0.48887698]
[1771807501466,0.46938753,82.139,82.107,12.66803013]
[1771807501646,0.46938753,82.139,82.108,0.48887698]
[1771807502154,0.46938753,82.145,82.108,0.48887698]
[1771807502650,3.19101497,82.15,82.11,0.48887698]
[1771807502850,0.46938753,82.148,82.11,0.48887698]
[1771807503266,12.17300271,82.149,82.11,0.48887698]
[1771807503267,0.46938753,82.139,82.11,0.48887698]
[1771807503465,0.46938753,82.129,82.109,12.17893288]
[1771807503664,0.46938753,82.136,82.11,0.48887698]
[1771807503869,3.19101497,82.15,82.111,0.48887698]
[1771807504763,0.46938753,82.153,82.113,0.48887698]
[1771807505149,0.46938753,82.159,82.113,0.48887698]
[1771807506686,0.46938753,82.159,82.115,0.48887698]
[1771807507274,0.46938753,82.157,82.115,0.48887698]
[1771807508060,0.46938753,82.157,82.114,12.17819129]
[1771807508273,12.17166922,82.158,82.095,0.48887698]
[1771807508274,0.46938753,82.129,82.095,0.48887698]
[1771807508773,0.46938753,82.129,82.096,12.18086143]
[1771807508977,0.46938753,82.129,82.097,0.48609097]
[1771807509162,0.48464957,82.119,82.097,0.48609097]
[1771807509685,0.48464957,82.119,82.081,0.48609097]
[1771807509980,0.48464957,82.119,81.938,47.49427952]
[1771807509981,3.69383402,82.087,82.022,0.48609097]
[1771807510160,3.19101497,82.05,82.022,0.48609097]
[1771807510364,0.48464957,82.077,82.022,0.48609097]
[1771807510591,48.69099202,82.151,82.021,42.67199862]
[1771807510592,0.48464957,82.089,82.041,0.48609097]
[1771807510812,0.48464957,82.087,82.042,12.18887886]
[1771807511111,0.48464957,82.087,82.043,0.48609097]
[1771807511485,0.48464957,82.087,82.051,0.48609097]
[1771807511685,0.48464957,82.098,82.051,0.48609097]
[1771807512602,0.48464957,82.089,82.051,0.48609097]
[1771807513305,0.48464957,82.079,82.046,12.18824545]
[1771807513806,0.48464957,82.088,82.047,0.48609097]
[1771807514914,0.48464957,82.079,82.047,0.48609097]
[1771807515715,3.19101497,82.07,82.048,12.18798751]
[1771807515916,0.48464957,82.069,82.042,12.18874389]
[1771807516818,0.48464957,82.069,82.043,0.48548866]
[1771807517321,0.48464957,82.069,82.042,12.18874389]
[1771807517639,0.48302266,82.049,82.02,0.1]
[1771807517804,0.48302266,82.049,81.995,30.48941691]
[1771807517805,0.48302266,82.029,81.996,12.19571686]
[1771807518108,12.18798751,82.048,82.001,0.48548866]
[1771807518310,3.19101497,82.04,82.001,0.48548866]
[1771807518526,3.19101497,82.05,82.001,0.48548866]
[1771807518821,3.19101497,82.05,82.011,0.48548866]
[1771807519123,3.19101497,82.05,82.0,0.48548866]
[1771807519124,3.19101497,82.03,82.0,0.48548866]
[1771807519608,3.19101497,82.02,81.99,0.1]
[1771807520202,0.48302266,82.019,81.99,0.1]
[1771807520627,12.67319127,82.034,81.991,0.48548866]
[1771807520800,12.67319127,82.034,81.99,3.29101497]
[1771807520801,0.48302266,82.034,82.001,0.48548866]
[1771807521513,0.48302266,82.039,82.001,0.48548866]
[1771807521926,0.48302266,82.029,82.002,0.48548866]
[1771807522738,0.48302266,82.029,81.996,0.48548866]
[1771807522934,0.48302266,82.029,81.995,12.19581572]
[1771807523126,0.48302266,82.029,81.996,0.48548866]
[1771807524321,0.48302266,82.027,81.998,0.48548866]
[1771807524523,0.48302266,82.037,81.999,0.48548866]
[1771807524723,0.48302266,82.037,82.001,0.48548866]
[1771807525320,0.48302266,82.049,82.002,0.28432314]
[1771807525518,0.48302266,82.057,82.011,0.48548866]
[1771807525722,0.48302266,82.049,82.011,0.48548866]
[1771807526027,0.48302266,82.04,82.011,0.48548866]
[1771807526227,0.48302266,82.048,82.013,0.48548866]
[1771807527017,0.48302266,82.058,82.013,0.48548866]
[1771807527212,0.48302266,82.049,82.013,0.48548866]
[1771807528603,0.48302266,82.049,82.015,0.48548866]
[1771807530326,0.48302266,82.047,82.015,0.48548866]
[1771807530827,0.48302266,82.047,82.017,0.48548866]
[1771807531029,0.48302266,82.056,82.017,0.48548866]
[1771807532330,0.48302266,82.064,82.021,0.48548866]
[1771807532532,0.48302266,82.072,82.031,0.48548866]
[1771807532722,0.48302266,82.072,82.033,0.48548866]
[1771807532919,0.48302266,82.077,82.033,0.48548866]
[1771807533718,0.48302266,82.084,82.037,0.48548866]
[1771807533923,0.48302266,82.082,82.042,0.48548866]
[1771807534139,0.48302266,82.089,82.046,0.48548866]
[1771807534345,0.48302266,82.089,82.048,0.48548866]
[1771807535031,0.48302266,82.089,82.05,0.48548866]
[1771807536135,0.48302266,82.087,82.05,0.48548866]
[1771807536331,0.48302266,82.079,82.05,0.48548866]
[1771807537230,0.48302266,82.079,82.03,8.57233583]
[1771807537231,0.48302266,82.069,82.035,0.48548866]
[1771807537612,0.48302266,82.059,82.028,12.67644784]
[1771807537817,0.48302266,82.059,82.029,0.48548866]
[1771807538018,0.48302266,82.059,82.028,12.19095918]
[1771807538325,0.48302266,82.059,82.021,0.48548866]
[1771807538326,0.48302266,82.059,82.023,12.64947873]
[1771807538714,0.45084436,82.049,82.023,12.64947873]
[1771807539339,0.45084436,82.049,82.024,0.45781705]
[1771807539641,0.45084436,82.057,82.024,0.45781705]
[1771807540536,0.45084436,82.076,82.024,0.45781705]
[1771807540839,0.45084436,82.059,82.024,0.45781705]
[1771807541041,42.64288411,82.077,82.023,42.67091749]
[1771807541042,0.45084436,82.049,82.023,12.19166168]
[1771807541915,8.57233583,82.04,82.013,0.45781705]
[1771807542229,8.57233583,82.04,82.015,0.45781705]
[1771807542426,0.45084436,82.039,82.015,0.45781705]
[1771807542813,0.45084436,82.039,82.007,0.45781705]
[1771807543336,8.57233583,82.02,81.991,0.45781705]
[1771807543523,0.45084436,82.019,81.991,0.45781705]
[1771807545742,0.45084436,82.017,81.992,12.19631183]
[1771807546142,8.57233583,82.02,81.99,0.1]
[1771807546143,0.45084436,82.015,81.99,0.1]
[1771807547141,0.45084436,82.015,81.99,0.55781705]
[1771807548539,0.28432314,82.038,81.99,0.55781705]
[1771807548540,0.45084436,82.023,81.992,0.45781705]
[1771807549627,0.45084436,82.023,81.994,0.45781705]
[1771807550949,0.45084436,82.023,81.996,0.45781705]
[1771807552245,0.45084436,82.022,81.996,0.45781705]
[1771807553854,0.45084436,82.022,81.998,0.45781705]
[1771807556528,0.45084436,82.045,82.001,0.45781705]
[1771807557455,0.45084436,82.039,82.001,0.45781705]
[1771807558637,0.45084436,82.037,82.003,0.45781705]
[1771807559830,0.45084436,82.037,82.011,0.45781705]
[1771807560240,0.45084436,82.045,82.011,0.45781705]
[1771807560642,0.45084436,82.049,82.022,0.45781705]
[1771807561027,0.45084436,82.049,82.017,12.19259018]
[1771807561232,0.45084436,82.049,82.012,12.19326643]
[1771807561645,0.45084436,82.049,82.013,0.45781705]
[1771807563257,30.46583478,82.06,82.015,0.45781705]
[1771807563258,0.45084436,82.047,82.015,0.45781705]
[1771807564145,0.45084436,82.047,82.009,12.1936541]
[1771807564535,0.45084436,82.047,82.01,0.45781705]
[1771807564935,0.45084436,82.047,82.01,9.03027972]
[1771807565156,0.45084436,82.047,82.013,0.45781705]
[1771807565740,12.18828462,82.046,82.013,0.45781705]
[1771807566667,8.57246267,82.07,82.021,0.45781705]
[1771807566964,0.45084436,82.067,82.021,0.45781705]
[1771807567259,0.45084436,82.072,82.031,0.45781705]
[1771807567948,0.45084436,82.072,82.041,0.45781705]
[1771807568262,0.45084436,82.08,82.041,0.45781705]
[1771807569344,0.45084436,82.08,82.043,0.48791499]
[1771807569844,0.45944055,82.089,82.051,0.48791499]
[1771807570054,0.45944055,82.097,82.061,0.48791499]
[1771807570756,3.19706951,82.09,82.051,0.48791499]
[1771807570964,0.45944055,82.089,82.051,0.48791499]
[1771807571258,0.45944055,82.089,82.053,0.48791499]
[1771807571649,0.45944055,82.088,82.053,0.48791499]
[1771807572744,0.45944055,82.087,82.053,0.48791499]
[1771807573764,0.45944055,82.085,82.055,0.48791499]
[1771807574643,0.45944055,82.085,82.05,12.6755853]
[1771807574842,0.45944055,82.079,82.05,12.6755853]
[1771807575065,0.45944055,82.079,82.051,0.48791499]
[1771807579170,3.69383402,82.114,82.031,0.45651035]
[1771807579171,0.45332034,82.059,82.031,0.45651035]
[1771807579345,0.45332034,82.059,82.002,60.97338186]
[1771807579346,0.45332034,82.039,82.003,12.19462669]
[1771807579548,0.45332034,82.029,82.003,12.19462669]
[1771807579860,0.45332034,82.019,81.996,12.19568812]
[1771807580156,0.45332034,82.019,81.986,0.45651035]
[1771807580361,8.56225898,82.02,81.97,0.1]
[1771807580362,0.45332034,81.999,81.97,0.1]
[1771807580547,0.45332034,81.989,81.97,0.1]
[1771807580858,0.45332034,81.999,81.971,0.45651035]
[1771807581161,0.45332034,81.979,81.94,8.56225898]
[1771807581368,0.45332034,81.979,81.903,3.69383402]
[1771807581570,0.45332034,81.979,81.94,8.56225898]
[1771807582650,0.45332034,81.997,81.95,8.56225898]
[1771807583164,0.45332034,81.997,81.953,0.45651035]
[1771807583473,0.45332034,81.989,81.953,0.45651035]
[1771807583657,0.45332034,81.979,81.953,0.45651035]
[1771807584564,0.45332034,81.979,81.954,12.20196695]
[1771807585050,0.45332034,81.979,81.955,0.45651035]
[1771807585250,0.45332034,81.989,81.955,0.45651035]
[1771807586150,0.45332034,81.988,81.955,0.45651035]
[1771807586475,0.45332034,81.986,81.949,12.65918352]
[1771807587044,0.45332034,81.979,81.949,12.20267317]
[1771807587464,0.45332034,81.979,81.94,39.52862056]
[1771807587465,0.45332034,81.979,81.943,12.20358089]
[1771807588251,0.45332034,81.999,81.947,0.22651231]
[1771807588450,0.45332034,81.987,81.952,12.20226474]
[1771807588849,0.45332034,81.987,81.952,12.42877705]
[1771807589050,0.45332034,81.987,81.953,0.22651231]
[1771807590067,0.45332034,81.987,81.952,12.20226474]
[1771807590370,0.45332034,81.979,81.945,12.20316566]
[1771807591167,0.45332034,81.977,81.945,12.20316566]
[1771807593356,0.45332034,81.977,81.941,30.50975702]
[1771807594069,0.45332034,81.975,81.93,0.1]
[1771807594267,12.1986923,81.976,81.93,0.1]
[1771807594268,0.45332034,81.949,81.93,0.1]
[1771807594576,0.45332034,81.949,81.892,103.3]
[1771807594577,0.14216157,81.937,81.871,0.45651035]
[1771807594785,5.36086188,81.955,81.901,0.45651035]
[1771807594979,0.45332034,81.956,81.92,3.20516516]
[1771807595284,0.45332034,81.956,81.922,0.45651035]
[1771807595454,0.45332034,81.955,81.921,12.20686562]
[1771807595655,0.45332034,81.983,81.931,0.45651035]
[1771807595880,0.45332034,81.983,81.958,0.45651035]
[1771807596080,0.45332034,81.983,81.96,3.20516516]
[1771807596562,0.45332034,82.0,81.971,0.45651035]
[1771807597074,0.45332034,82.019,81.98,3.20516516]
[1771807597256,0.45332034,82.019,81.983,0.45651035]
[1771807597454,0.45332034,82.049,82.01,3.20516516]
[1771807597657,0.45332034,82.048,82.01,3.20516516]
[1771807597860,0.45332034,82.048,82.001,0.45651035]
[1771807598075,0.45332034,82.039,82.001,0.45651035]
[1771807599454,0.45332034,82.039,82.002,12.19482451]
[1771807599662,3.69383402,82.064,82.002,12.19482451]
[1771807599663,0.49286983,82.058,82.021,0.48757049]
[1771807599969,0.49286983,82.067,82.021,0.48757049]
[1771807600170,0.49286983,82.076,82.041,0.48757049]
[1771807601698,0.49286983,82.089,82.043,0.48757049]
[1771807601853,0.49286983,82.089,82.042,12.18887886]
[1771807601854,0.49286983,82.087,82.051,0.48757049]
[1771807603168,3.69383402,82.114,82.021,3.69383402]
[1771807603169,0.49286983,82.079,82.048,12.18784275]
[1771807603560,0.49286983,82.079,82.049,0.48757049]
[1771807604279,0.49286983,82.079,82.05,8.57188254]
[1771807604486,0.49286983,82.079,82.051,0.48757049]
[1771807606284,0.49286983,82.093,82.053,0.48757049]
[1771807606484,12.17908121,82.108,82.052,12.18739336]
[1771807606485,0.49286983,82.107,82.061,0.48757049]
[1771807606689,0.49286983,82.119,82.081,0.48757049]
[1771807606868,0.49286983,82.119,82.071,0.48757049]
[1771807607181,0.49286983,82.089,82.053,0.48757049]
[1771807607794,0.49286983,82.079,82.046,12.18825812]
[1771807607999,0.14216157,82.099,82.051,0.48757049]
[1771807608000,0.49286983,82.089,82.051,0.48757049]
[1771807609187,0.49286983,82.099,82.061,0.48757049]
[1771807609391,0.49286983,82.117,82.071,0.48757049]
[1771807609794,0.77719297,82.109,82.07,8.57188254]
[1771807609974,0.49286983,82.099,82.063,12.67319333]
[1771807610897,0.49286983,82.099,82.064,0.48757049]
[1771807611494,0.49286983,82.099,82.066,0.48757049]
[1771807611889,0.49286983,82.099,82.071,0.48757049]
[1771807613089,0.6350314,82.119,82.081,0.48757049]
[1771807613288,0.49286983,82.118,82.081,0.48757049]
[1771807614594,0.49286983,82.117,82.064,0.48757049]
[1771807614893,12.17769806,82.118,82.066,0.48757049]
[1771807614894,0.49286983,82.109,82.066,0.48757049]
[1771807615091,0.49286983,82.099,82.066,0.48757049]
[1771807615293,0.49286983,82.099,82.065,12.18546274]
[1771807616206,0.49286983,82.089,82.058,12.18641415]
[1771807616785,0.49286983,82.079,82.034,30.47512301]
[1771807617106,12.18195454,82.089,82.028,0.48757049]
[1771807617107,0.28432314,82.068,82.028,0.48757049]
[1771807617295,0.49286983,82.049,82.012,0.48757049]
[1771807618092,0.49286983,82.047,82.012,0.48757049]
[1771807618298,0.49286983,82.039,82.012,0.48757049]
[1771807618607,0.49286983,82.039,82.004,12.19447742]
[1771807618787,0.49286983,82.056,82.005,0.48757049]
[1771807618989,0.49286983,82.056,82.011,0.48757049]
[1771807619295,0.49286983,82.049,82.011,0.48757049]
[1771807620510,0.49286983,82.047,82.012,12.19333756]
[1771807620704,8.57144157,82.04,82.011,0.48757049]
[1771807620883,3.69383402,82.077,82.012,12.19333756]
[1771807620884,9.0643114,82.05,82.012,12.19333756]
[1771807621090,30.46285401,82.068,82.021,0.48757049]
[1771807621091,12.18516577,82.067,82.021,0.48757049]
[1771807621806,12.6780356,82.067,82.021,0.48757049]
[1771807622010,12.18516577,82.067,82.021,0.48757049]
[1771807622208,0.49286983,82.075,82.031,0.48757049]
[1771807622407,0.49286983,82.075,82.041,0.48757049]
[1771807622611,0.49286983,82.094,82.051,0.48757049]
[1771807622820,0.49286983,82.094,82.061,0.48757049]
[1771807622988,8.57144157,82.1,82.061,0.48757049]
[1771807623188,0.49286983,82.099,82.061,0.48757049]
[1771807623895,0.49286983,82.099,82.062,12.18590821]
[1771807624096,0.49286983,82.099,82.063,0.48757049]
[1771807624900,12.18056469,82.098,82.063,0.48757049]
[1771807625110,12.67343452,82.098,82.063,0.48757049]
[1771807625314,0.49286983,82.097,82.063,0.48757049]
[1771807625890,0.49286983,82.107,82.063,0.48757049]
[1771807626210,12.1782534,82.114,82.065,0.48757049]
[1771807626806,0.49286983,82.126,82.081,0.48757049]
[1771807627908,0.2,82.13,82.091,0.48757049]
[1771807628093,0.2,82.13,82.093,0.48757049]
[1771807629210,0.45022137,82.128,82.093,0.48757049]
[1771807630605,0.2,82.13,82.095,0.47619462]
[1771807630804,0.2,82.19,82.101,0.47619462]
[1771807630805,0.45022137,82.147,82.101,0.47619462]
[1771807631002,0.45022137,82.159,82.111,0.47619462]
[1771807631196,0.45022137,82.158,82.111,0.47619462]
[1771807631603,0.45022137,82.149,82.111,0.47619462]
[1771807631797,0.45022137,82.139,82.095,0.47619462]
[1771807632197,0.45022137,82.149,82.101,0.47619462]
[1771807632397,0.45022137,82.157,82.101,0.47619462]
[1771807632609,12.17196552,82.156,82.102,42.62989938]
[1771807632806,0.45022137,82.155,82.103,0.47619462]
[1771807633719,0.45022137,82.149,82.103,0.47619462]
[1771807635112,0.45022137,82.147,82.105,0.47619462]
[1771807637314,0.48974475,82.145,82.107,0.47163197]
[1771807639420,12.17374366,82.144,82.109,0.47163197]
[1771807639720,0.48974475,82.145,82.109,0.47163197]
[1771807640104,12.66285427,82.149,82.109,0.47163197]
[1771807640415,0.48974475,82.148,82.109,0.47163197]
[1771807641020,0.48974475,82.148,82.111,0.47163197]
[1771807643836,0.2,82.16,82.119,0.47163197]
[1771807644001,0.2,82.16,82.12,8.57144157]
[1771807644324,0.2,82.16,82.121,0.47163197]
[1771807645548,0.48974475,82.159,82.121,0.47163197]
[1771807646635,0.48974475,82.159,82.123,0.47163197]
[1771807647128,0.2,82.16,82.123,0.47163197]
[1771807648627,0.2,82.16,82.125,0.47163197]
[1771807648928,0.2,82.16,82.129,0.47163197]
[1771807649510,0.48974475,82.159,82.129,0.47163197]
[1771807649808,0.48974475,82.158,82.124,12.17670839]
[1771807650210,0.48974475,82.149,82.108,0.47163197]
[1771807650615,0.48974475,82.149,82.109,12.17893288]
[1771807650616,12.66281775,82.149,82.109,12.17893288]
[1771807650832,0.48974475,82.148,82.11,0.47163197]
[1771807653105,0.48974475,82.148,82.111,42.62522682]
[1771807653427,0.48974475,82.148,82.112,0.47163197]
[1771807653725,0.48974475,82.159,82.118,0.47163197]
[1771807653927,0.2,82.16,82.125,0.47163197]
[1771807654230,0.2,82.16,82.129,0.47163197]
[1771807654732,0.48974475,82.159,82.129,0.47163197]
[1771807654928,0.48974475,82.159,82.111,42.62522682]
[1771807654929,0.48974475,82.158,82.112,0.47163197]
[1771807655608,0.48974475,82.156,82.114,0.47163197]
[1771807656326,0.48974475,82.149,82.114,0.47163197]
[1771807657634,0.48974475,82.149,82.115,12.64967495]
[1771807658017,0.48974475,82.149,82.115,43.09478242]
[1771807658419,0.47187743,82.148,82.115,12.64287355]
[1771807658742,0.47187743,82.148,82.116,0.46483057]
[1771807660026,0.47187743,82.159,82.118,0.46483057]
[1771807660221,0.47187743,82.158,82.118,0.46483057]
[1771807660724,8.57144157,82.15,82.118,0.46483057]
[1771807660929,0.47187743,82.149,82.117,42.62211234]
[1771807661436,0.47187743,82.149,82.118,0.46483057]
[1771807661940,0.47187743,82.159,82.122,42.61951729]
[1771807662118,0.47187743,82.159,82.123,0.46483057]
[1771807662720,8.57144157,82.15,82.117,12.17762556]
[1771807662925,0.47187743,82.149,82.118,0.46483057]
[1771807664537,0.47187743,82.148,82.119,12.17744979]
[1771807665742,0.47187743,82.148,82.119,12.64228036]
[1771807667037,0.47187743,82.146,82.119,12.64228036]
[1771807668056,0.47187743,82.146,82.119,12.17744979]
[1771807668230,0.47187743,82.144,82.114,12.17815665]
[1771807668419,0.47187743,82.144,82.114,12.64298722]
[1771807668623,0.47187743,82.139,82.109,12.17884852]
[1771807668932,0.47187743,82.139,82.11,0.46483057]
[1771807670044,0.47187743,82.138,82.1,30.91518091]
[1771807670241,0.47187743,82.138,82.101,0.46483057]
[1771807672345,0.47187743,82.138,82.103,0.46483057]
[1771807674353,0.47187743,82.129,82.104,12.17967455]
[1771807675654,0.47187743,82.129,82.096,0.46483057]
[1771807676157,0.47187743,82.128,82.096,0.46483057]
[1771807676450,0.47187743,82.128,82.071,3.69383402]
[1771807676451,8.57144157,82.11,82.06,8.57144157]
[1771807676671,0.47187743,82.099,82.061,0.46483057]
[1771807677252,0.47187743,82.125,82.081,0.46483057]
[1771807677749,0.47187743,82.119,82.083,0.46483057]
[1771807680239,0.47187743,82.119,82.077,30.45907213]
[1771807680240,0.47187743,82.109,82.079,12.18329516]
[1771807680555,8.55669129,82.12,82.08,0.46483057]
[1771807680754,0.47187743,82.127,82.081,0.46483057]
[1771807680955,0.47187743,82.135,82.091,0.46483057]
[1771807682149,0.47187743,82.135,82.09,8.55669129]
[1771807682150,0.47187743,82.135,82.093,0.46483057]
[1771807682352,30.62854224,82.16,82.101,0.46483057]
[1771807682353,8.55669129,82.14,82.101,0.46483057]
[1771807682555,0.47187743,82.139,82.094,0.46483057]
[1771807682954,0.47187743,82.129,82.094,0.46483057]
[1771807684650,0.47187743,82.127,82.095,12.1810098]
[1771807686345,0.47187743,82.127,82.095,12.64584037]
[1771807686546,0.47187743,82.119,82.089,12.18190013]
[1771807687042,0.47187743,82.119,82.089,12.6467307]
[1771807687246,0.47187743,82.119,82.09,0.46483057]
[1771807689560,0.47187743,82.119,82.089,42.63665046]
[1771807689561,0.46417166,82.138,82.101,0.45861215]
[1771807690066,0.46417166,82.119,82.091,12.18160334]
[1771807690765,0.46417166,82.119,82.091,12.64021549]
[1771807692653,0.46417166,82.119,82.091,43.09422384]
[1771807694169,0.46417166,82.119,82.092,0.45861215]
[1771807696759,0.46417166,82.119,82.094,0.49178707]
[1771807697267,0.4804907,82.129,82.094,0.49178707]
[1771807697771,0.4804907,82.142,82.101,0.49178707]
[1771807697966,0.4804907,82.142,82.111,0.49178707]
[1771807698861,0.4804907,82.15,82.113,0.49178707]
[1771807699669,0.4804907,82.149,82.113,0.49178707]
[1771807701371,0.4804907,82.159,82.115,0.49178707]
[1771807701952,3.1931013,82.15,82.115,0.49178707]
[1771807703570,3.1931013,82.15,82.11,3.1931013]
[1771807703571,3.1931013,82.15,82.117,0.49178707]
[1771807704076,0.4804907,82.153,82.117,0.49178707]
[1771807704977,3.1931013,82.15,82.117,0.49178707]
[1771807705282,3.673592,82.15,82.117,0.49178707]
[1771807705770,0.4804907,82.149,82.119,0.49178707]
[1771807706567,0.4804907,82.139,82.107,0.49178707]
[1771807706769,0.4804907,82.139,82.108,0.49178707]
[1771807707675,3.1931013,82.14,82.108,0.49178707]
[1771807707875,0.4804907,82.147,82.11,0.49178707]
[1771807708661,0.2,82.16,82.121,0.49178707]
[1771807709877,0.2,82.16,82.133,0.49178707]
[1771807711069,0.4804907,82.159,82.133,0.49178707]
[1771807711774,3.3931013,82.16,82.135,0.49178707]
[1771807711980,0.2,82.16,82.135,0.49178707]
[1771807712683,0.4804907,82.178,82.139,0.49178707]
[1771807712976,3.1931013,82.16,82.139,0.49178707]
[1771807713161,0.4804907,82.159,82.139,0.49178707]
[1771807713778,0.4804907,82.159,82.134,42.61329047]
[1771807713779,0.4804907,82.159,82.135,0.49178707]
[1771807713989,0.4804907,82.169,82.137,0.49178707]
[1771807715785,0.4804907,82.179,82.139,0.49178707]
[1771807715975,0.4804907,82.179,82.141,0.49178707]
[1771807717990,0.4804907,82.159,82.14,12.17433649]
[1771807718190,3.1931013,82.17,82.141,0.49178707]
[1771807718394,0.4804907,82.169,82.141,0.49178707]
[1771807720787,0.4804907,82.169,82.142,12.17404007]
[1771807722091,0.4804907,82.169,82.142,12.64602498]
[1771807722472,0.47469903,82.176,82.143,0.47198491]
[1771807723175,0.47469903,82.176,82.145,0.47198491]
[1771807724792,0.47469903,82.176,82.146,12.17344727]
[1771807724997,0.47469903,82.169,82.146,12.17344727]
[1771807725776,0.47469903,82.169,82.146,12.64543218]
[1771807725976,0.47469903,82.169,82.147,0.47198491]
[1771807727178,0.47469903,82.169,82.136,0.47198491]
[1771807729501,0.47469903,82.169,82.138,0.47198491]
[1771807729708,12.1701879,82.168,82.133,12.17534445]
[1771807729886,0.47469903,82.159,82.133,12.17534445]
[1771807732287,0.47469903,82.159,82.133,12.64732936]
[1771807732511,0.47469903,82.159,82.134,0.47198491]
[1771807732807,0.47469903,82.174,82.134,0.47198491]
[1771807733011,0.47469903,82.169,82.134,0.47198491]
[1771807733604,0.47469903,82.169,82.135,42.61277165]
[1771807733778,0.47469903,82.169,82.136,0.47198491]
[1771807734202,0.47469903,82.176,82.136,0.47198491]
[1771807735100,0.47469903,82.176,82.138,0.47198491]
[1771807735481,0.47469903,82.169,82.138,0.47198491]
[1771807735702,0.47469903,82.169,82.139,0.47198491]
[1771807735887,0.47469903,82.159,82.138,0.47198491]
[1771807736086,0.47469903,82.167,82.138,0.47198491]
[1771807737806,0.47469903,82.167,82.14,0.47198491]
[1771807738201,0.47469903,82.176,82.14,0.47198491]
[1771807738390,0.47469903,82.176,82.141,0.47198491]
[1771807740410,0.47469903,82.187,82.151,0.47198491]
[1771807740609,0.47469903,82.179,82.143,0.47198491]
[1771807741000,0.47469903,82.187,82.151,0.47198491]